{"text_format":"3","workbook":"xlsx","n_sheets":2,"sheets":["Začátek","Faktura za služby"],"not_rendered":{"images":1,"defined_names":1},"read":"whole","date_system":"1900"}

{"sheet":"Začátek","index":0,"n_rows":8,"n_cols":2,"rows_kept":8}
[null,"INFORMACE O TÉTO ŠABLONĚ"]
[null,"Tuto šablonu můžete použít k vytvoření faktury za služby."]
[null,"Zadejte číslo faktury, datum, název společnosti, adresu, motto a informace o příjemci faktury."]
[null,"Zadejte údaje do tabulek."]
[null,"Celková hodnota se automaticky vypočítá za vás."]
[null,"Poznámka: "]
[null,"Další pokyny jsou k dispozici ve sloupci A na listu FAKTURA ZA SLUŽBY. Text těchto pokynů je záměrně skrytý. Pokud ho chcete odebrat, vyberte sloupec A a stiskněte klávesu DELETE. Pokud ho chcete zobrazit, vyberte sloupec A a změňte barvu písma."]
[null,"Další informace o tabulkách můžete získat tak, že v tabulce stisknete klávesy SHIFT a F10, vyberete možnost TABULKA a pak vyberete ALTERNATIVNÍ TEXT."]

{"sheet":"Faktura za služby","index":1,"n_rows":44,"n_cols":5,"rows_kept":44,"merged":[[0,1,0,2],[0,3,0,4],[2,1,2,3],[3,1,3,3],[4,1,4,2],[5,1,5,2],[6,1,6,2],[7,1,7,2],[41,1,41,2],[41,3,41,4],[43,1,43,4]]}
[null,"V této buňce je zástupný symbol loga.",null,"FAKTURA"]
[]
[null,"Název vaší společnosti"]
[null,"Motto vaší společnosti"]
[null,"Ulice a číslo domu",null,"ČÍSLO FAKTURY","Číslo"]
[null,"PSČ a město",null,"DATUM ",{"$f":"TODAY()","v":"2022-05-06"}]
[null,"Telefon a Fax",null,"IČ odběratele ","IČ"]
[null,"E-mail"]
[null,"ODBĚRATEL","Jméno"]
[null,null,"Název společnosti"]
[null,null,"Ulice a číslo domu"]
[null,null,"PSČ a město"]
[null,null,"Telefon"]
[null,"DODAVATEL","ZAKÁZKA","PLATEBNÍ PODMÍNKY","DATUM SPLATNOSTI"]
[{"$nulls":3},"Splatné při převzetí"]
[]
[null,"MNOŽSTVÍ","POPIS","JEDN. CENA","CELKEM ZA ŘÁDEK"]
[{"$nulls":4},{"$f":"IF(SUM(B18)>0,SUM(B18*'Faktura za služby'!$D18),\"\")","v":""}]
[{"$nulls":4},{"$f":"IF(SUM(B19)>0,SUM(B19*'Faktura za služby'!$D19),\"\")","v":""}]
[{"$nulls":4},{"$f":"IF(SUM(B20)>0,SUM(B20*'Faktura za služby'!$D20),\"\")","v":""}]
[{"$nulls":4},{"$f":"IF(SUM(B21)>0,SUM(B21*'Faktura za služby'!$D21),\"\")","v":""}]
[{"$nulls":4},{"$f":"IF(SUM(B22)>0,SUM(B22*'Faktura za služby'!$D22),\"\")","v":""}]
[{"$nulls":4},{"$f":"IF(SUM(B23)>0,SUM(B23*'Faktura za služby'!$D23),\"\")","v":""}]
[{"$nulls":4},{"$f":"IF(SUM(B24)>0,SUM(B24*'Faktura za služby'!$D24),\"\")","v":""}]
[{"$nulls":4},{"$f":"IF(SUM(B25)>0,SUM(B25*'Faktura za služby'!$D25),\"\")","v":""}]
[{"$nulls":4},{"$f":"IF(SUM(B26)>0,SUM(B26*'Faktura za služby'!$D26),\"\")","v":""}]
[{"$nulls":4},{"$f":"IF(SUM(B27)>0,SUM(B27*'Faktura za služby'!$D27),\"\")","v":""}]
[{"$nulls":4},{"$f":"IF(SUM(B28)>0,SUM(B28*'Faktura za služby'!$D28),\"\")","v":""}]
[{"$nulls":4},{"$f":"IF(SUM(B29)>0,SUM(B29*'Faktura za služby'!$D29),\"\")","v":""}]
[{"$nulls":4},{"$f":"IF(SUM(B30)>0,SUM(B30*'Faktura za služby'!$D30),\"\")","v":""}]
[{"$nulls":4},{"$f":"IF(SUM(B31)>0,SUM(B31*'Faktura za služby'!$D31),\"\")","v":""}]
[{"$nulls":4},{"$f":"IF(SUM(B32)>0,SUM(B32*'Faktura za služby'!$D32),\"\")","v":""}]
[{"$nulls":4},{"$f":"IF(SUM(B33)>0,SUM(B33*'Faktura za služby'!$D33),\"\")","v":""}]
[{"$nulls":4},{"$f":"IF(SUM(B34)>0,SUM(B34*'Faktura za služby'!$D34),\"\")","v":""}]
[{"$nulls":4},{"$f":"IF(SUM(B35)>0,SUM(B35*'Faktura za služby'!$D35),\"\")","v":""}]
[{"$nulls":4},{"$f":"IF(SUM(B36)>0,SUM(B36*'Faktura za služby'!$D36),\"\")","v":""}]
[{"$nulls":4},{"$f":"IF(SUM(B37)>0,SUM(B37*'Faktura za služby'!$D37),\"\")","v":""}]
[{"$nulls":3},"MEZISOUČET",{"$f":"IF(SUM(E18:E37)>0,SUM(E18:E37),\"\")","v":""}]
[{"$nulls":3},"DPH"]
[{"$nulls":3},"CELKEM",{"$f":"IF(SUM(E38)>0,SUM((E38*E39)+E38),\"\")","v":""}]
[]
[null,"Příjemce všech plateb:",null,{"$f":"B3","v":"Název vaší společnosti"}]
[]
[null,"DĚKUJEME VÁM ZA VYUŽITÍ NAŠICH SLUŽEB!"]